bitfinex/quotes_SOLUSD_20240625
["timestamp","ask_amount","ask_price","bid_price","bid_amount"]
[1719319439342,1.18391436,137.64,137.62,7.2662]
[1719319439731,1.18391436,137.64,137.63,7.2658]
[1719319440232,1.18391436,137.67,137.64,7.2648]
[1719319440434,101.18391436,137.67,137.6,26.65]
[1719319440647,108.44801436,137.67,137.61,7.2667]
[1719319440845,100.0,137.65,137.55,0.17]
[1719319441155,1.18391436,137.64,137.59,7.2678]
[1719319441371,8.44921436,137.64,137.58,7.2683]
[1719319441646,8.44931436,137.64,137.59,7.2679]
[1719319441853,1.18391436,137.64,137.61,7.2664]
[1719319442146,100.0,137.65,137.6,7.2672]
[1719319442353,0.34,137.64,137.6,7.2672]
[1719319442556,1.18391436,137.64,137.56,26.65]
[1719319442735,1.18391436,137.64,137.59,26.65]
[1719319442934,22.7954,137.68,137.59,26.65]
[1719319442935,1.18391436,137.66,137.59,26.65]
[1719319443244,1.18391436,137.66,137.64,7.2652]
[1719319443545,1.18391436,137.66,137.59,26.65]
[1719319443752,1.18391436,137.66,137.63,7.2655]
[1719319443927,1.18391436,137.66,137.63,7.2658]
[1719319444852,1.18391436,137.66,137.62,7.2663]
[1719319445233,1.18391436,137.66,137.63,7.2656]
[1719319445442,1.18391436,137.66,137.64,7.2652]
[1719319445641,1.18391436,137.67,137.64,7.2652]
[1719319446259,1.18391436,137.67,137.65,7.2643]
[1719319446553,1.18391436,137.67,137.66,7.2642]
[1719319447948,1.18391436,137.67,137.65,7.2647]
[1719319448136,1.18391436,137.67,137.66,7.2642]
[1719319448338,1.18391436,137.7,137.68,7.263]
[1719319448533,1.18391436,137.7,137.67,7.2636]
[1719319448733,1.18391436,137.7,137.68,7.2631]
[1719319449562,1.18391436,137.7,137.69,7.2626]
[1719319449778,1.18391436,137.72,137.7,7.2619]
[1719319450060,1.18391436,137.72,137.65,26.65]
[1719319450432,1.18391436,137.72,137.7,7.262]
[1719319450633,1.18391436,137.74,137.69,7.2625]
[1719319451066,8.44391436,137.74,137.69,7.2625]
[1719319451234,1.18391436,137.73,137.69,7.2625]
[1719319451561,1.18391436,137.73,137.66,26.65]
[1719319451562,1.18391436,137.73,137.7,7.262]
[1719319453760,1.18391436,137.73,137.69,7.2624]
[1719319454260,1.18391436,137.73,137.7,7.2621]
[1719319455367,1.18391436,137.73,137.69,7.2625]
[1719319456468,1.18391436,137.73,137.66,26.65]
[1719319456662,1.18391436,137.73,137.64,15.1384]
[1719319456663,101.18391436,137.73,137.68,7.2628]
[1719319457774,101.18391436,137.73,137.69,7.2625]
[1719319458070,101.18391436,137.73,137.68,7.263]
[1719319458866,108.44451436,137.73,137.68,7.263]
[1719319459084,100.0,137.71,137.62,26.65]
[1719319459274,1.18391436,137.7,137.65,7.2646]
[1719319459440,1.35391436,137.7,137.65,7.2646]
[1719319459642,1.35391436,137.7,137.66,7.2642]
[1719319462467,0.39398996,137.69,137.66,7.2642]
[1719319463172,0.39398996,137.69,137.65,7.2646]
[1719319464185,0.39398996,137.69,137.66,7.264]
[1719319465160,0.39398996,137.69,137.65,7.2646]
[1719319467395,0.39398996,137.69,137.62,26.65]
[1719319467561,0.39398996,137.69,137.67,7.2634]
[1719319468487,0.39398996,137.69,137.62,26.65]
[1719319468668,107.65668996,137.69,137.63,7.2656]
[1719319468978,107.65668996,137.69,137.63,15.4919867]
[1719319468979,100.39398996,137.69,137.63,15.4919867]
[1719319469163,7.65688996,137.69,137.64,7.2652]
[1719319469356,107.65688996,137.69,137.64,7.2652]
[1719319469555,107.65688996,137.69,137.63,15.4919867]
[1719319470084,0.39398996,137.69,137.63,8.2263867]
[1719319470287,0.39398996,137.69,137.65,7.2647]
[1719319470663,0.39398996,137.69,137.66,7.264]
[1719319470854,0.39398996,137.69,137.63,8.2263867]
[1719319471489,0.39398996,137.69,137.67,7.2635]
[1719319471786,0.39398996,137.69,137.66,7.2639]
[1719319472889,0.39398996,137.69,137.68,8.88]
[1719319473260,0.39398996,137.69,137.67,7.2636]
[1719319473580,0.39398996,137.69,137.68,8.88]
[1719319474165,0.39398996,137.69,137.68,16.1432]
[1719319474479,0.39398996,137.69,137.67,8.88]
[1719319474863,0.39398996,137.69,137.63,8.2263867]
[1719319475086,0.39398996,137.69,137.68,8.88]
[1719319475963,0.39398996,137.69,137.67,16.1437]
[1719319476269,0.39398996,137.69,137.67,8.88]
[1719319479992,0.39398996,137.69,137.67,16.1436]
[1719319480285,0.39398996,137.69,137.68,8.88]
[1719319480593,0.39398996,137.69,137.67,16.1436]
[1719319481790,0.39398996,137.69,137.67,7.2636]
[1719319481964,0.39398996,137.69,137.67,8.88]
[1719319483193,0.39398996,137.69,137.68,16.1432]
[1719319483484,0.39398996,137.69,137.68,8.88]
[1719319483689,0.39398996,137.69,137.68,16.1432]
[1719319483909,0.39398996,137.72,137.68,24.3695867]
[1719319484397,0.39398996,137.72,137.68,15.4895867]
[1719319484690,0.39398996,137.72,137.69,8.88]
[1719319485071,0.39398996,137.72,137.68,8.2263867]
[1719319485271,0.39398996,137.72,137.68,17.1063867]
[1719319485902,7.65508996,137.72,137.68,17.1063867]
[1719319486803,0.39398996,137.72,137.68,17.1063867]
[1719319487002,7.2626,137.7,137.68,8.2263867]
[1719319487179,7.65658996,137.69,137.68,8.2263867]
[1719319487505,107.82658996,137.69,137.68,8.2263867]
[1719319487680,116.87658996,137.69,137.68,8.2263867]
[1719319488362,161.87658996,137.69,137.68,8.2263867]
[1719319488794,175.19968996,137.69,137.68,8.2263867]
[1719319488995,184.07968996,137.69,137.68,8.2263867]
[1719319490591,122.93708996,137.69,137.68,8.2263867]
[1719319490896,139.07968996,137.69,137.68,8.2263867]
[1719319493603,131.81708996,137.69,137.68,8.2263867]
[1719319493768,22.59708996,137.69,137.68,8.2263867]
[1719319493968,0.39398996,137.7,137.68,8.2263867]
[1719319494401,9.27398996,137.72,137.68,8.2263867]
[1719319495278,16.1417,137.71,137.68,8.2263867]
[1719319495490,0.39398996,137.7,137.68,8.2263867]
[1719319496005,109.27398996,137.7,137.68,8.2263867]
[1719319496173,16.4826,137.69,137.68,8.2263867]
[1719319496376,16.87658996,137.69,137.68,8.2263867]
[1719319496575,7.82658996,137.69,137.68,8.2263867]
[1719319496777,0.39398996,137.69,137.68,8.2263867]
[1719319498293,0.39398996,137.7,137.68,8.2263867]
[1719319499202,0.39398996,137.72,137.68,15.4894867]
[1719319499378,0.39398996,137.72,137.68,24.3694867]
[1719319499579,7.65518996,137.72,137.68,17.1063867]
[1719319499898,7.65518996,137.72,137.68,8.2263867]
[1719319500097,16.53518996,137.72,137.68,8.2263867]
[1719319500483,16.1416,137.71,137.68,8.2263867]
[1719319500681,0.39398996,137.7,137.68,8.2263867]
[1719319501898,0.39398996,137.71,137.68,24.3694867]
[1719319502103,0.39398996,137.71,137.69,8.88]
[1719319502586,0.39398996,137.71,137.68,8.2263867]
[1719319502787,0.39398996,137.74,137.7,8.88]
[1719319502997,277.0399,137.82,137.73,8.88]
[1719319502998,0.39398996,137.76,137.73,8.88]
[1719319503298,0.39398996,137.76,137.74,8.88]
[1719319503881,7.2586,137.77,137.71,7.2612]
[1719319504204,0.39398996,137.76,137.73,8.88]
[1719319504402,0.39398996,137.76,137.7,15.127]
[1719319504403,0.39398996,137.76,137.74,8.88]
[1719319504602,0.39398996,137.76,137.7,15.127]
[1719319504908,0.39398996,137.76,137.72,7.2609]
[1719319507287,0.39398996,137.76,137.73,7.2605]
[1719319508486,7.65188996,137.78,137.73,7.2605]
[1719319509132,0.39398996,137.78,137.74,7.26]
[1719319509309,0.39398996,137.78,137.73,7.2605]
[1719319509609,100.0,137.77,137.72,7.2611]
[1719319509809,0.39398996,137.76,137.7,15.127]
[1719319509992,7.65308996,137.76,137.71,7.2614]
[1719319510903,122.8076,137.74,137.68,8.2263867]
[1719319511084,0.39398996,137.73,137.68,8.2263867]
[1719319511493,7.2625,137.7,137.68,8.2263867]
[1719319511823,7.2626,137.69,137.68,8.2263867]
[1719319512385,7.6026,137.69,137.68,8.2263867]
[1719319512918,52.6026,137.69,137.68,8.2263867]
[1719319513701,52.6026,137.69,137.68,7.83239674]
[1719319513905,7.6026,137.69,137.68,7.83239674]
[1719319514116,52.6026,137.69,137.68,7.83239674]
[1719319514807,7.6026,137.69,137.68,7.83239674]
[1719319517109,15.27990037,137.69,137.68,7.83239674]
[1719319517424,107.2662,137.63,137.58,15.1556]
[1719319517600,107.2662,137.63,137.55,7.27]
[1719319517601,7.267,137.61,137.55,7.27]
[1719319518111,7.2677,137.6,137.54,23.4709959]
[1719319518303,7.2677,137.6,137.54,16.2005959]
[1719319518505,7.268,137.59,137.54,16.2005959]
[1719319518697,7.2691,137.57,137.54,0.8512959]
[1719319518905,100.0,137.59,137.54,0.8512959]
[1719319519128,107.2681,137.59,137.54,0.8512959]
[1719319519632,100.0,137.59,137.54,8.1218959]
[1719319519919,7.4375,137.6,137.54,8.1218959]
[1719319520118,107.267,137.61,137.55,7.2698]
[1719319520321,107.267,137.61,137.54,8.1216959]
[1719319521024,7.267,137.61,137.55,7.2699]
[1719319522309,107.267,137.61,137.55,7.2699]
[1719319524023,7.2674,137.6,137.54,8.1216959]
[1719319524229,107.2671,137.61,137.54,8.1216959]
[1719319524520,0.17,137.62,137.54,0.8512959]
[1719319524825,7.67730037,137.64,137.54,0.8512959]
[1719319525028,7.2659,137.63,137.57,7.2686]
[1719319526006,100.0,137.63,137.56,15.036]
[1719319526203,7.267,137.61,137.56,15.036]
[1719319527725,7.2664,137.62,137.56,15.036]
[1719319529015,7.2659,137.63,137.56,15.036]
[1719319529216,7.6053,137.64,137.56,15.036]
[1719319529412,7.4353,137.64,137.56,15.036]
[1719319529736,7.2653,137.64,137.56,15.036]
[1719319529897,107.2658,137.63,137.56,15.036]
[1719319530102,7.2654,137.64,137.56,15.036]
[1719319530332,7.2658,137.63,137.56,15.036]
[1719319530811,122.0201,137.65,137.56,15.036]
[1719319531011,7.6054,137.64,137.56,15.036]
[1719319531213,7.4354,137.64,137.56,15.036]
[1719319531828,7.2654,137.64,137.56,15.036]
[1719319532132,7.2659,137.63,137.56,15.036]
[1719319534633,7.2665,137.62,137.56,15.036]
[1719319536305,7.2669,137.61,137.56,15.036]
[1719319536712,7.2665,137.62,137.56,15.036]
[1719319537003,7.2664,137.62,137.56,15.036]
[1719319537216,107.436,137.63,137.56,15.036]
[1719319539334,0.17,137.64,137.56,15.036]
[1719319539515,107.265,137.65,137.56,15.036]
[1719319540230,7.265,137.65,137.56,15.036]
[1719319540540,7.2643,137.66,137.57,0.17]
[1719319540740,7.2639,137.67,137.57,26.95]
[1719319541439,7.2639,137.67,137.58,16.5009]
[1719319541740,7.2643,137.66,137.58,16.5009]
[1719319543035,107.67730037,137.68,137.58,16.5009]
[1719319543236,7.4337,137.67,137.58,16.5009]
[1719319543725,7.2653,137.64,137.58,16.5009]
[1719319544152,100.0,137.66,137.58,16.5009]
[1719319544153,7.266,137.63,137.58,16.5009]
[1719319544342,0.17,137.67,137.58,16.5009]
[1719319544343,100.0,137.64,137.58,16.5009]
[1719319544504,7.267,137.61,137.58,16.5009]
[1719319544827,7.2675,137.6,137.55,23.0915]
[1719319545137,7.2671,137.61,137.55,23.0915]
[1719319545511,7.2665,137.62,137.55,23.0915]
[1719319546439,0.34,137.63,137.55,23.0915]
[1719319546615,0.17,137.63,137.55,23.0915]
[1719319547131,7.2667,137.62,137.55,23.0915]
[1719319548143,7.2669,137.61,137.55,23.0915]
[1719319549143,107.2665,137.62,137.55,23.0915]
[1719319549934,7.2665,137.62,137.55,23.0915]
[1719319550342,7.606,137.63,137.55,23.0915]
[1719319550557,0.17,137.63,137.55,23.0915]
[1719319550720,107.2654,137.64,137.55,23.0915]
[1719319550930,7.2649,137.65,137.56,0.17]
[1719319551956,7.2649,137.65,137.56,0.34]
[1719319552159,100.0,137.66,137.56,0.34]
[1719319552853,7.2648,137.65,137.56,0.34]
[1719319553144,7.2654,137.64,137.56,0.34]
[1719319553354,7.265,137.65,137.56,0.34]
[1719319554048,7.2653,137.64,137.56,0.34]
[1719319555254,100.0,137.64,137.55,23.0915]
[1719319555947,7.2667,137.62,137.55,23.0915]
[1719319556450,107.2667,137.62,137.55,23.0915]
[1719319557331,7.2659,137.63,137.55,23.0915]
[1719319558044,107.4355,137.64,137.55,23.0915]
[1719319558233,7.2675,137.6,137.55,23.0915]
[1719319558433,7.2681,137.59,137.55,16.4341]
[1719319559052,100.0,137.6,137.55,16.4341]
[1719319559053,107.2676,137.6,137.55,16.4341]
[1719319559857,7.2676,137.6,137.55,16.4341]
[1719319561362,0.34,137.61,137.54,0.8512959]
[1719319561363,7.2688,137.58,137.54,0.8512959]
[1719319561962,107.6081,137.59,137.54,0.8512959]
[1719319562257,7.2678,137.6,137.54,0.8512959]
[1719319562754,107.267,137.61,137.54,0.8512959]
[1719319563254,7.2675,137.6,137.54,0.8512959]
[1719319564956,169.20670037,137.63,137.54,0.8512959]
[1719319564957,7.267,137.61,137.54,0.8512959]
[1719319565142,7.2671,137.61,137.54,0.8512959]
[1719319565332,7.2675,137.6,137.54,0.8512959]
[1719319568578,7.2681,137.59,137.54,0.8512959]
[1719319568757,7.2689,137.58,137.54,0.8512959]
[1719319569151,7.2681,137.59,137.54,0.8512959]
[1719319570477,7.2676,137.6,137.54,0.8512959]
[1719319570660,16.168,137.59,137.54,9.7512959]
[1719319571070,7.268,137.59,137.54,9.7512959]
[1719319571259,16.168,137.59,137.54,9.7512959]
[1719319571468,7.268,137.59,137.55,8.9]
[1719319571654,107.67730037,137.63,137.55,8.9]
[1719319571851,7.2665,137.62,137.57,8.9]
[1719319572056,107.67730037,137.63,137.54,0.8512959]
[1719319572258,7.2672,137.61,137.57,8.9]
[1719319572477,7.2672,137.61,137.54,0.8512959]
[1719319572478,7.2677,137.6,137.56,8.9]
[1719319572654,7.2677,137.6,137.54,0.8512959]
[1719319572655,16.1677,137.6,137.54,9.7512959]
[1719319573271,7.2677,137.6,137.55,8.9]
[1719319573479,16.1677,137.6,137.55,8.9]
[1719319575378,7.2686,137.58,137.54,0.8512959]
[1719319575589,100.0,137.59,137.54,0.8512959]
[1719319575886,16.17,137.55,137.54,0.8512959]
[1719319576181,7.27,137.55,137.54,0.8512959]
[1719319576363,16.17,137.55,137.54,0.8512959]
[1719319576773,116.17,137.55,137.54,0.8512959]
[1719319576973,125.41,137.55,137.54,0.8512959]
[1719319577279,221.06760037,137.55,137.54,0.8512959]
[1719319577580,227.43449138,137.55,137.54,0.8512959]
[1719319577782,227.43449138,137.55,137.44,6.1521]
[1719319577783,107.2732,137.5,137.44,6.1521]
[1719319577959,8.9,137.48,137.44,6.1521]
[1719319578674,107.2732,137.5,137.44,6.1521]
[1719319578675,7.2732,137.49,137.44,6.1521]
[1719319579060,107.2727,137.5,137.44,6.1521]
[1719319579682,7.2733,137.49,137.44,6.1521]
[1719319579876,107.2727,137.5,137.44,6.1521]
[1719319580071,100.0,137.5,137.44,6.1521]
[1719319580688,7.2736,137.49,137.44,6.1521]
[1719319580881,107.2728,137.5,137.44,6.1521]
[1719319581201,100.0,137.5,137.44,6.1521]
[1719319581569,107.2729,137.5,137.44,6.1521]
[1719319582695,7.4436,137.49,137.43,15.7102]
[1719319582984,100.0,137.5,137.43,15.7102]
[1719319582985,107.2728,137.5,137.43,15.7102]
[1719319583163,7.2733,137.49,137.43,15.7102]
[1719319583370,107.2729,137.5,137.43,15.7102]
[1719319585597,7.2723,137.51,137.43,15.7102]
[1719319585978,7.2727,137.5,137.43,15.7102]
[1719319587104,7.2732,137.49,137.43,15.7102]
[1719319587785,7.2728,137.5,137.43,15.7102]
[1719319587968,7.2723,137.51,137.43,15.7102]
[1719319588169,7.2727,137.5,137.43,15.7102]
[1719319588579,7.2733,137.49,137.43,15.7102]
[1719319588986,107.2728,137.5,137.43,15.7102]
[1719319589185,7.2728,137.5,137.43,15.7102]
[1719319589698,7.2733,137.49,137.43,15.7102]
[1719319590078,7.2738,137.48,137.43,15.7102]
[1719319590596,7.2743,137.47,137.43,15.7102]
[1719319590894,107.2739,137.48,137.43,15.7102]
[1719319591397,7.2744,137.47,137.43,15.7102]
[1719319592688,107.2739,137.48,137.43,15.7102]
[1719319593395,0.17,137.47,137.43,15.7102]
[1719319594885,7.4443,137.47,137.43,15.7102]
[1719319595093,7.2748,137.46,137.43,15.7102]
[1719319595806,7.4445,137.47,137.43,15.7102]
[1719319596301,7.2739,137.48,137.43,15.7102]
[1719319596497,107.84730037,137.5,137.43,15.7102]
[1719319596817,107.2741,137.48,137.43,15.7102]
[1719319597177,7.2734,137.49,137.43,15.7102]
[1719319597904,114.95010037,137.5,137.43,15.7102]
[1719319598214,14.95010037,137.5,137.43,15.7102]
[1719319598498,7.2732,137.49,137.43,15.7102]
[1719319599106,114.95020037,137.5,137.43,15.7102]
[1719319599278,14.95010037,137.5,137.43,15.7102]
[1719319599598,7.67730037,137.5,137.43,15.7102]
[1719319599795,14.95000037,137.5,137.43,15.7102]
[1719319599999,7.2732,137.49,137.43,15.7102]
[1719319600514,7.67730037,137.5,137.43,15.7102]
[1719319600685,14.95020037,137.5,137.44,8.91]
[1719319600893,8.91,137.49,137.44,8.91]
[1719319601600,16.1832,137.49,137.44,8.91]
[1719319602194,8.91,137.49,137.44,8.91]
[1719319602582,16.1833,137.49,137.44,8.91]
[1719319603301,8.91,137.48,137.43,24.6202]
[1719319603600,16.1833,137.49,137.43,15.7102]
[1719319603901,8.91,137.49,137.44,8.91]
[1719319604208,23.86020037,137.5,137.44,8.91]
[1719319604405,16.1829,137.5,137.44,8.91]
[1719319605210,7.2723,137.51,137.45,8.91]
[1719319605392,8.91,137.51,137.46,8.91]
[1719319606191,7.67730037,137.53,137.47,15.1363]
[1719319606393,16.1801,137.55,137.49,8.91]
[1719319606597,7.2707,137.54,137.49,8.91]
[1719319606803,16.1807,137.54,137.49,8.91]
[1719319607099,7.2702,137.55,137.49,8.91]
[1719319607297,16.1807,137.54,137.49,8.91]
[1719319607481,7.2712,137.53,137.49,8.91]
[1719319608199,16.1812,137.53,137.48,8.91]
[1719319608500,7.2721,137.52,137.48,8.91]
[1719319608800,7.2723,137.51,137.47,15.1363]
[1719319609603,7.2718,137.52,137.47,15.1363]
[1719319609808,8.91,137.52,137.47,24.0463]
[1719319610103,7.2716,137.52,137.47,24.0463]
[1719319610610,7.2716,137.52,137.47,15.1363]
[1719319611293,7.2722,137.51,137.47,15.1363]
[1719319613706,107.2718,137.52,137.47,15.1363]
[1719319614306,7.4413,137.53,137.47,15.1363]
[1719319614507,0.17,137.53,137.47,15.1363]
[1719319615209,7.4411,137.53,137.47,15.1363]
[1719319616213,7.2711,137.53,137.47,15.1363]
[1719319616390,7.2717,137.52,137.47,15.1363]
[1719319617204,14.94760037,137.55,137.47,15.1363]
[1719319617504,7.2698,137.56,137.47,15.1363]
[1719319618585,100.0,137.56,137.47,15.1363]
[1719319618792,7.2714,137.53,137.47,15.1363]
[1719319619789,100.0,137.54,137.47,15.1363]
[1719319620014,7.2704,137.55,137.47,15.1363]
[1719319620225,7.84730037,137.56,137.47,15.1363]
[1719319620424,258.9,137.57,137.48,0.77667271]
[1719319620593,100.0,137.56,137.47,15.1363]
[1719319620924,7.2702,137.55,137.47,15.1363]
[1719319621292,7.2707,137.54,137.47,15.1363]
[1719319621493,100.0,137.54,137.47,15.1363]
[1719319621737,7.2717,137.52,137.47,15.1363]
[1719319621922,100.0,137.54,137.47,15.1363]
[1719319622099,7.2709,137.54,137.47,15.1363]
[1719319622410,7.2711,137.53,137.47,15.1363]
[1719319623490,107.2708,137.54,137.47,15.1363]
[1719319623698,7.2711,137.53,137.47,15.1363]
[1719319624113,7.2707,137.54,137.47,15.1363]
[1719319624312,7.6102,137.55,137.47,15.1363]
[1719319624622,7.2706,137.54,137.47,15.1363]
[1719319625195,0.34,137.55,137.47,15.1363]
[1719319625398,0.17,137.55,137.47,15.1363]
[1719319625607,100.0,137.54,137.47,15.1363]
[1719319625800,100.0,137.52,137.47,15.1363]
[1719319626004,7.4414,137.53,137.47,15.1363]
[1719319626313,7.4406,137.55,137.47,15.1363]
[1719319626522,0.17,137.54,137.47,15.1363]
[1719319626716,0.34,137.54,137.47,15.1363]
[1719319627221,7.2706,137.55,137.47,15.1363]
[1719319627423,7.2697,137.56,137.47,15.1363]
[1719319627731,258.9,137.57,137.47,15.1363]
[1719319627927,258.9,137.57,137.49,6.079]
[1719319628221,258.9,137.57,137.5,15.288]
[1719319628822,258.9,137.57,137.5,15.118]
[1719319629200,7.2701,137.55,137.5,15.118]
[1719319629800,107.2697,137.56,137.5,15.118]
[1719319630011,7.2711,137.53,137.5,15.118]
[1719319630230,100.0,137.56,137.5,15.118]
[1719319630403,7.2713,137.53,137.5,15.118]
[1719319631308,107.2708,137.54,137.5,15.118]
[1719319632611,100.0,137.54,137.5,15.118]
[1719319632917,108.9,137.54,137.5,15.118]
[1719319633633,116.1706,137.54,137.5,15.118]
[1719319634011,16.1712,137.53,137.5,15.118]
[1719319634231,8.9,137.52,137.47,15.9]
[1719319634412,8.9,137.52,137.47,24.8]
[1719319635232,7.2712,137.53,137.47,24.8]
[1719319635425,8.9,137.52,137.47,24.8]
[1719319636609,7.2708,137.54,137.47,24.8]
[1719319636819,8.9,137.54,137.49,8.9]
[1719319637027,108.9,137.53,137.47,15.9]
[1719319637234,8.9,137.51,137.47,15.9]
[1719319638937,107.2712,137.53,137.47,15.9]
[1719319639139,8.9,137.51,137.47,15.9]
[1719319640339,8.9,137.5,137.47,15.9]
[1719319640911,8.9,137.51,137.47,15.9]
[1719319641931,8.9,137.49,137.43,15.4644]
[1719319642136,8.9,137.45,137.43,15.4644]
[1719319643536,9.61697854,137.48,137.43,15.4644]
[1719319643712,8.9,137.47,137.43,15.4644]
[1719319644810,8.9,137.46,137.43,15.4644]
[1719319645034,8.9,137.45,137.43,15.4644]
[1719319646241,7.2748,137.46,137.43,15.4644]
[1719319646537,7.2748,137.46,137.41,0.8512959]
[1719319647022,7.2755,137.45,137.41,0.8512959]
[1719319647215,8.9,137.43,137.41,0.8512959]
[1719319648327,15.4008,137.51,137.42,8.9]
[1719319648545,100.0,137.47,137.41,0.8512959]
[1719319648748,8.9,137.45,137.41,0.8512959]
[1719319649259,8.9,137.46,137.41,9.7512959]
[1719319649951,16.1744,137.47,137.42,8.9]
[1719319650150,8.9,137.47,137.42,8.9]
[1719319650748,107.2734,137.49,137.41,0.8512959]
[1719319650960,16.19067329,137.51,137.42,15.2014]
[1719319651245,7.2706,137.54,137.43,6.5889]
[1719319651456,7.2706,137.54,137.44,15.2014]
[1719319651773,7.2713,137.53,137.44,15.2014]
[1719319652245,7.2713,137.53,137.45,0.17]
[1719319652446,7.2713,137.53,137.44,15.2014]
[1719319652638,100.0,137.53,137.44,15.2014]
[1719319653242,7.2712,137.53,137.44,15.2014]
[1719319653445,8.6535341,137.54,137.44,15.2014]
[1719319653634,107.2701,137.55,137.45,0.34]
[1719319653841,100.0,137.55,137.45,0.34]
[1719319654153,7.2711,137.53,137.45,0.34]
[1719319654456,7.2714,137.53,137.45,0.34]
[1719319654747,7.2717,137.52,137.44,15.2014]
[1719319655052,7.2722,137.51,137.44,15.2014]
[1719319655645,7.2718,137.52,137.44,15.2014]
[1719319656257,7.2722,137.51,137.44,15.2014]
[1719319658340,107.6127,137.5,137.44,15.2014]
[1719319658652,7.4427,137.5,137.44,15.2014]
[1719319659234,100.0,137.54,137.44,15.2014]
[1719319659458,7.6113,137.53,137.44,15.2014]
[1719319659962,7.2725,137.51,137.44,15.2014]
[1719319660532,7.2717,137.52,137.44,15.2014]
[1719319661139,100.0,137.56,137.45,0.17]
[1719319661343,40.4142,137.58,137.45,0.34]
[1719319661344,7.2702,137.55,137.45,0.34]
[1719319661637,7.2702,137.55,137.45,27.07]
[1719319662055,7.2696,137.56,137.45,27.07]
[1719319662251,7.2696,137.56,137.46,21.4088]
[1719319662541,7.2701,137.55,137.47,0.17]
[1719319663754,7.2697,137.56,137.47,0.17]
[1719319663956,7.2697,137.56,137.47,0.34]
[1719319664171,100.0,137.58,137.47,0.34]
[1719319664465,33.09689101,137.61,137.48,42.7268]
[1719319664466,15.9226341,137.57,137.48,42.7268]
[1719319664633,8.6535341,137.57,137.49,0.34]
[1719319664834,100.0,137.6,137.49,0.34]
[1719319665035,21.4325,137.62,137.49,0.34]
[1719319665036,7.2684,137.59,137.5,21.7219]
[1719319665259,7.2684,137.59,137.51,0.17]
[1719319665454,7.2684,137.59,137.51,1.8730306]
[1719319665652,7.2684,137.59,137.51,0.34]
[1719319665953,8.6535341,137.61,137.51,0.34]
[1719319666158,7.2685,137.58,137.51,0.34]
[1719319667270,7.268,137.59,137.51,0.34]
[1719319668635,7.2685,137.58,137.5,21.7219]
[1719319668837,7.2686,137.58,137.5,21.7219]
[1719319669142,7.2681,137.59,137.5,21.7219]
[1719319669336,100.0,137.6,137.5,21.7219]
[1719319669542,7.2681,137.59,137.51,0.17]
[1719319669864,7.2676,137.6,137.51,0.17]
[1719319670264,7.2676,137.6,137.51,0.34]
[1719319670971,7.2679,137.59,137.51,0.34]
[1719319671870,7.2685,137.58,137.51,0.34]
[1719319672172,7.2764,137.43,137.39,21.85]
[1719319672483,22.7064,137.55,137.35,30.0]
[1719319672484,129.61045455,137.42,137.35,30.0]
[1719319672775,127.35958436,137.42,137.34,7.2809]
[1719319673071,7.2776,137.41,137.34,7.2809]
[1719319673271,20.41706146,137.4,137.34,7.2809]
[1719319673567,107.277,137.42,137.34,7.2809]
[1719319673775,0.17,137.43,137.32,22.4581]
[1719319673980,100.0,137.42,137.32,22.4581]
[1719319674311,100.0,137.4,137.32,22.4581]
[1719319674570,0.34,137.39,137.32,22.4581]
[1719319674866,0.17,137.39,137.32,22.4581]
[1719319675252,7.2796,137.37,137.32,22.4581]